Workbook

Sheet пищевая ценность
A1: Пищевая ценность | C1: учебный год 2024-2025 возрастная группа 7-11 лет
B2: Наименование блюда | C2: выход блюд
D3: пищевые ценности | G3: энерг. ценность(ккал) | H3: Витамины (мг) | L3: Миниральные вещества(мг)
D4: Б | E4: Ж | F4: У | H4: В1 | I4: С | J4: А | K4: Е | L4: Сa | M4: Р | N4: Mg | O4: Fe
A5: Первая неделя 1 ДЕНЬ (понедельник)
A6: Всего на завтрак : | D6: 21.04 | E6: 23.89 | F6: 68.7 | G6: 551.47 | H6: 0.202 | I6: 15.579 | J6: 0.1007 | K6: 3.579 | L6: 97.52 | M6: 214.15 | N6: 62.7 | O6: 2.17
A7: Всего на обед: | D7: 31.24 | E7: 33.26 | F7: 98.97 | G7: 891.47 | H7: 0.33 | I7: 31 | J7: 0.036 | K7: 9.77 | L7: 120.25 | M7: 394.2 | N7: 101.3 | O7: 6.89
A8: Всего в день: | D8: =SUM(D6:D7) -> 52.28 | E8: 57.15 | F8: 167.67 | G8: 1442.94 | H8: 0.532 | I8: 46.579 | J8: 0.1367 | K8: 13.349 | L8: 217.77 | M8: 608.35 | N8: 164 | O8: 9.06
A9: Первая неделя 2 ДЕНЬ (вторник)
A10: Всего на завтрак : | D10: 14.28 | E10: 12.3 | F10: 82.08 | G10: 587 | H10: 0.183 | I10: 2.859 | J10: 0.071 | K10: 0.948 | L10: 327.1 | M10: 289.7 | N10: 68.2 | O10: 1.79
A11: Всего на обед: | D11: 28.98 | E11: 24.64 | F11: 104.35 | G11: 826.93 | H11: 0.412 | I11: 40.74 | J11: 0.098 | K11: 50.01 | L11: 142.8 | M11: 437.8 | N11: 135.9 | O11: 7.73
A12: Всего в день: | D12: =SUM(D10:D11) -> 43.26 | E12: 36.94 | F12: 186.43 | G12: 1413.93 | H12: 0.595 | I12: 43.599 | J12: 0.169 | K12: 50.958 | L12: 469.9 | M12: 727.5 | N12: 204.1 | O12: 9.52
A13: Первая неделя 3 ДЕНЬ (среда)
A14: Всего на завтрак : | D14: 37.05 | E14: 20.42 | F14: 85.35 | G14: 698.3 | H14: 0.37 | I14: 8.1 | J14: 0.2 | K14: 1.589 | L14: 317.7 | M14: 385.4 | N14: 52.85 | O14: 3.45
A15: Всего на обед: | D15: 38.76 | E15: 38.8 | F15: 102.66 | G15: 918.85 | H15: 0.388 | I15: 30.268 | J15: 0.032 | K15: 8.1 | L15: 125.53 | M15: 406.25 | N15: 143.07 | O15: 7.5
A16: Всего в день: | D16: =SUM(D14:D15) -> 75.81 | E16: 59.22 | F16: 188.01 | G16: 1617.15 | H16: 0.758 | I16: 38.368 | J16: 0.232 | K16: 9.689 | L16: 443.23 | M16: 791.65 | N16: 195.92 | O16: 10.95
A17: Первая неделя 4 ДЕНЬ (четверг)
A18: Всего на завтрак : | D18: 22.5 | E18: 20.18 | F18: 122.15 | G18: 644 | H18: 0.406 | I18: 15.639 | J18: 0.143 | K18: 2.579 | L18: 147.7 | M18: 486.07 | N18: 211.7 | O18: 9.435
A19: Всего на обед: | D19: 39.07 | E19: 34.3 | F19: 96.58 | G19: 844.35 | H19: 0.67 | I19: 36.11 | J19: 0.053 | K19: 7.836 | L19: 191.2 | M19: 516.7 | N19: 141.2 | O19: 36.16
A20: Всего в день: | D20: =SUM(D18:D19) -> 61.57 | E20: 54.48 | F20: 218.73 | G20: 1488.35 | H20: 1.076 | I20: 51.749 | J20: 0.196 | K20: 10.415 | L20: 338.9 | M20: 1002.77 | N20: 352.9 | O20: 45.595
A21: Первая неделя 5 ДЕНЬ (пятница)
A22: Всего на завтрак : | D22: 18.25 | E22: 22.44 | F22: 73.66 | G22: 620.06 | H22: 0.41 | I22: 0.71 | J22: 0.204 | K22: 2.939 | L22: 141.1 | M22: 448.2 | N22: 193.8 | O22: 7.84
A23: Всего на обед : | D23: 33.39 | E23: 23.08 | F23: 76.82 | G23: 789.3 | H23: =SUM(H18:H22) -> 2.562 | I23: 104.208 | J23: 0.596 | K23: 23.769 | L23: 818.9 | M23: 627.6 | N23: 384.6 | O23: 99.03
A24: Всего в день: | D24: =SUM(D22:D23) -> 51.64 | E24: 45.52 | F24: 150.48 | G24: 1409.36 | H24: 2.972 | I24: 104.918 | J24: 0.8 | K24: 26.708 | L24: 960 | M24: 1075.8 | N24: 578.4 | O24: 106.87
A25: Вторая неделя 6 ДЕНЬ (понедельник)
A26: Всего на завтрак : | D26: 22.12 | E26: 16.76 | F26: 58.05 | G26: 489.6 | H26: 0.12 | I26: 1.37 | J26: 0.013 | K26: 0.789 | L26: 221.7 | M26: 196.2 | N26: 39.1 | O26: 1.39
A27: Всего на обед: | D27: 37.4 | E27: 33.17 | F27: 119.91 | G27: 950.55 | H27: 0.364 | I27: 46.91 | J27: 0.098 | K27: 8.14 | L27: 188.3 | M27: 439.9 | N27: 143.25 | O27: 7.53
A28: Всего в день: | D28: =SUM(D26:D27) -> 59.52 | E28: 49.93 | F28: 177.96 | G28: 1440.15 | H28: 0.484 | I28: 48.28 | J28: 0.111 | K28: 8.929 | L28: 410 | M28: 636.1 | N28: 182.35 | O28: 8.92
A29: Вторая неделя 7 ДЕНЬ (вторник)
A30: Всего на завтрак : | D30: 18.75 | E30: 30.7 | F30: 78.9 | G30: 702.58 | H30: 0.6 | I30: 15.03 | J30: 0.04 | K30: 2.239 | L30: 107.7 | M30: 132.18 | N30: 35.6 | O30: 5.2
A31: Всего на обед: | D31: 30.3 | E31: 16.59 | F31: 110.35 | G31: 745.87 | H31: 0.392 | I31: 25.5 | J31: 0.064 | K31: 6.52 | L31: 134.75 | M31: 417.85 | N31: 111.54 | O31: 6.055
A32: Всего в день: | D32: =SUM(D30:D31) -> 49.05 | E32: 47.29 | F32: 189.25 | G32: 1448.45 | H32: 0.992 | I32: 40.53 | J32: 0.104 | K32: 8.759 | L32: 242.45 | M32: 550.03 | N32: 147.14 | O32: 11.255
A33: Вторая недел 8 ДЕНЬ (среда)
A34: Всего на завтрак : | D34: 23.6 | E34: 21.68 | F34: 121.45 | G34: 677.7 | H34: 0.428 | I34: 9.97 | J34: 0.123 | K34: 2 | L34: 265.1 | M34: 341.74 | N34: 76.45 | O34: 4.22
A35: Всего на обед: | D35: 29.38 | E35: 25.52 | F35: 97.63 | G35: 748.7 | H35: 0.73 | I35: 40.49 | J35: 0.037 | K35: 4.13 | L35: 158.75 | M35: 667.5 | N35: 147.93 | O35: 9.25
A36: Всего в день: | D36: =SUM(D34:D35) -> 52.98 | E36: 47.2 | F36: 219.08 | G36: 1426.4 | H36: 1.158 | I36: 50.46 | J36: 0.16 | K36: 6.13 | L36: 423.85 | M36: 1009.24 | N36: 224.38 | O36: 13.47
A37: Вторая неделя 9 ДЕНЬ (четверг)
A38: Всего на завтрак : | D38: 19.46 | E38: 16.78 | F38: 99.67 | G38: 627.5 | H38: 0.428 | I38: 9.97 | J38: 0.123 | K38: 2 | L38: 265.1 | M38: 341.74 | N38: 76.45 | O38: 4.22
A39: Всего на обед: | D39: 31.56 | E39: 26.2 | F39: 98.27 | G39: 813.8 | H39: 0.73 | I39: 40.49 | J39: 0.037 | K39: 4.13 | L39: 158.75 | M39: 667.5 | N39: 147.93 | O39: 9.25
A40: Всего в день: | D40: =SUM(D38:D39) -> 51.02 | E40: 42.98 | F40: 197.94 | G40: 1441.3 | H40: 1.158 | I40: 50.46 | J40: 0.16 | K40: 6.13 | L40: 423.85 | M40: 1009.24 | N40: 224.38 | O40: 13.47
A41: Вторая недел 10 ДЕНЬ (пятница)
A42: Всего на завтрак : | D42: 31.62 | E42: 32.92 | F42: 54.53 | G42: 726.9 | H42: 0.29 | I42: 2.71 | J42: 0.103 | K42: 1.789 | L42: 379.9 | M42: 475 | N42: 82.9 | O42: 4.35
A43: Всего на обед: | D43: 33.48 | E43: 25.86 | F43: 124.01 | G43: 873.4 | H43: 0.882 | I43: 27.788 | J43: 0.069 | K43: 5.65 | L43: 124.28 | M43: 403.3 | N43: 105.97 | O43: 10.28
A44: Всего в день: | D44: =SUM(D42:D43) -> 65.1 | E44: 58.78 | F44: 178.54 | G44: 1600.3 | H44: 1.172 | I44: 30.498 | J44: 0.172 | K44: 7.439 | L44: 504.18 | M44: 878.3 | N44: 188.87 | O44: 14.63
A45: Среднее за 1 0 дней | D45: =(D44+D40+D36+D32+D28+D24+D20+D16+D12+D8)/10 -> 56.223 | E45: 49.949 | F45: 187.409 | G45: 1472.833 | H45: 1.0897 | I45: 50.5441 | J45: 0.22407 | K45: 14.8506 | L45: 443.413 | M45: 828.898 | N45: 246.244 | O45: 24.374

Sheet накопительная ведомость
A1: Ведомость контроля за рационом питания с 7лет до 11 лет 2024-2025 год
A2: Наименование продукта | B2: норма в день | C2: за 12 дней | D2: 1 | E2: 2 | F2: 3 | G2: 4 | H2: 5 | I2: 6 | J2: 7 | K2: 8 | L2: 9 | M2: 10 | N2: 11 | O2: 12 | P2: итого | Q2: среднее за 12 дней | R2: отк в гр. | S2: откл. факт в %
A4: хлеб ржаной | B4: 48 | C4: =B4*12 -> 576 | D4: 50 | E4: 50 | F4: 50 | G4: 50 | H4: 50 | I4: 50 | J4: 50 | K4: 50 | L4: 50 | M4: 50 | N4: 50 | O4: 50 | P4: =SUM(D4:O4) -> 600 | Q4: =SUM(D4:O4)/12 -> 50 | R4: =Q4-B4 -> 2 | S4: =Q4*5% -> 2.5
A5: хлеб пшенич. | B5: 90 | C5: =B5*12 -> 1080 | D5: 100 | E5: 100 | F5: 100 | G5: 100 | H5: 100 | I5: 90 | J5: 100 | K5: 100 | L5: 100 | M5: 100 | N5: 125 | O5: 104 | P5: =SUM(D5:O5) -> 1219 | Q5: =SUM(D5:O5)/12 -> 101.5833333 | R5: =Q5-B5 -> 11.58333333 | S5: 3.9
A6: мука | B6: 9 | C6: =B6*12 -> 108 | D6: 10 | E6: 27.5 | F6: 11.7 | G6: 8.5 | H6: 2.5 | I6: 2.5 | J6: 3.7 | K6: 6.5 | L6: 2.5 | M6: 3 | N6: 2.5 | O6: 72 | P6: 152.9 | Q6: 12.74166667 | R6: 3.741666667 | S6: =Q6*5% -> 0.6370833333
A7: крупа, бобовые | B7: 27 | C7: 324 | D7: 23 | E7: 61 | F7: 89 | G7: 41 | H7: 52.9 | I7: 54 | J7: 69 | K7: 54 | L7: 121 | M7: 5 | N7: 61 | O7: 20 | P7: 650.9 | Q7: 54.24166667 | R7: 27.24166667 | S7: 2.712083333
A8: макаронные изд. | B8: 9 | C8: 108 | D8: 51 | G8: 51 | M8: 51 | O8: 51 | P8: 204 | Q8: 17 | R8: 8 | S8: 0.85
A9: картофель | B9: 112.8 | C9: 1353.6 | D9: 75 | E9: 201 | F9: 128.5 | G9: 25 | H9: 201 | I9: 75 | J9: 43 | K9: 176 | L9: 112 | M9: 70 | N9: 120 | O9: 62.5 | P9: 1289 | Q9: 107.4166667 | R9: -5.383333333 | S9: 3.6
A10: овощи | B10: 168 | C10: 2016 | D10: 129.8 | E10: 188 | F10: 264 | G10: 163.5 | H10: 175 | I10: 231 | J10: 289.6 | K10: 191.6 | L10: 128.9 | M10: 322.5 | N10: 128 | O10: 93 | P10: 2304.9 | Q10: 192.075 | R10: 24.075 | S10: 4.9
A11: фрукты | B11: 100 | C11: 1200 | D11: 7 | E11: 24 | F11: 100 | G11: 81 | H11: 140 | I11: 166 | J11: 7 | K11: 40 | L11: 50 | M11: 140 | N11: 100 | O11: 100 | P11: 955 | Q11: 79.58333333 | R11: -20.41666667 | S11: 3.979166667
A12: сухофрукты | B12: 9 | C12: 108 | D12: 30 | E12: 2 | F12: 30 | J12: 30 | K12: 2 | N12: 30 | O12: 30 | P12: 154 | Q12: 12.83333333 | R12: 3.833333333 | S12: 0.6416666667
A13: мясо | B13: 42 | C13: 504 | D13: 117 | E13: 94 | F13: 74 | H13: 92 | I13: 97 | J13: 74 | N13: 94 | O13: 72 | P13: 714 | Q13: 59.5 | R13: 17.5 | S13: 2.975
A14: субпродукты | B14: 18 | C14: 216 | H14: 72 | P14: 72 | Q14: 6 | R14: -12 | S14: 0.3
A15: куры Iкатег. | B15: 21 | C15: 252 | D15: 18 | E15: 18 | F15: 77 | G15: 142 | J15: 18 | K15: 72 | L15: 67.5 | M15: 142 | O15: 72 | P15: 626.5 | Q15: 52.20833333 | R15: 31.20833333 | S15: 2.610416667
A16: рыба- филе | B16: 35 | C16: 420 | E16: 87 | K16: 72 | N16: 40 | P16: 199 | Q16: 16.58333333 | R16: -18.41666667 | S16: 0.8291666667
A17: кисломол продук | B17: 90 | C17: 1080 | P17: 0 | Q17: 0 | R17: -90 | S17: 0
A18: молоко | B18: 150 | C18: 1800 | D18: 176 | E18: 26 | G18: 83 | H18: 156.5 | I18: 250 | J18: 136 | K18: 28 | L18: 183 | M18: 150 | O18: 18 | P18: 1206.5 | Q18: 100.5416667 | R18: -49.45833333 | S18: 7.3
A19: творог | B19: 30 | C19: 360 | G19: 79 | L19: 79 | P19: 158 | Q19: 13.16666667 | R19: -16.83333333 | S19: 0.6583333333
A20: сыр | B20: 6 | C20: 72 | E20: 15 | F20: 15 | I20: 20 | J20: 20 | K20: 15 | M20: 30 | N20: 7 | P20: 122 | Q20: 10.16666667 | R20: 4.166666667 | S20: 0.5083333333
A21: сметана | B21: 6 | C21: 72 | F21: 9.1 | G21: 17 | J21: 10 | K21: 14 | L21: 2.5 | M21: 2 | P21: 54.6 | Q21: 4.55 | R21: -1.45 | S21: 0.2275
A22: сливоч. масло | B22: 18 | C22: 216 | D22: 30 | E22: 14 | F22: 20.7 | G22: 15 | H22: 18 | I22: 16 | J22: 21 | K22: 18.5 | L22: 11 | M22: 14 | N22: 12 | O22: 21 | P22: 211.2 | Q22: 17.6 | R22: -0.4 | S22: 0.88
A23: растит. масло | B23: 9 | C23: 108 | D23: 13 | E23: 16.4 | F23: 15 | G23: 19 | H23: 18 | I23: 18 | J23: 19.5 | K23: 23.8 | L23: 12.5 | M23: 17.3 | N23: 16 | O23: 13.6 | P23: 202.1 | Q23: 16.84166667 | R23: 7.841666667 | S23: 0.8420833333
A24: яйцо | B24: 28 | C24: 336 | D24: 50 | E24: 3 | F24: 7 | G24: 7 | H24: 25 | J24: 55 | K24: 5 | L24: 27 | M24: 50 | N24: 5 | O24: 25 | P24: 259 | Q24: 21.58333333 | R24: -6.416666667 | S24: 1.079166667
A25: сахар | B25: 24 | C25: 288 | D25: 36 | E25: 32.5 | F25: 30 | G25: 44 | H25: 25 | I25: 37.5 | J25: 32.5 | K25: 30 | L25: 44 | M25: 33 | N25: 30 | O25: 25 | P25: 399.5 | Q25: 33.29166667 | R25: 9.291666667 | S25: 1.664583333
A26: чай | B26: 0.24 | C26: 2.88 | D26: 1 | E26: 1 | F26: 1 | G26: 1 | I26: 1 | J26: 1 | K26: 1 | L26: 1 | M26: 1 | N26: 1 | P26: 10 | Q26: 0.8333333333 | R26: 0.5933333333 | S26: 0.04166666667
A27: какао, кофейн | B27: 0.72 | C27: 8.64 | H27: 5 | O27: 5 | P27: 10 | Q27: 0.8333333333 | R27: 0.1133333333 | S27: 0.04166666667
A28: соль | B28: 3 | C28: 36 | D28: 3 | E28: 3 | F28: 3 | G28: 3 | H28: 3 | I28: 3 | J28: 3 | K28: 3 | L28: 3 | M28: 3 | N28: 3 | O28: 3 | P28: 36 | Q28: =SUM(D28:O28)/12 -> 3 | R28: 0 | S28: 0.15

Sheet сводная карта
A1: Сводная карта 2х разовое питание 2024-2025г. 7-11 лет
A2: 1 день | C2: 2 день | E2: 3 день | G2: 4 день | I2: 5 день
A3: Завтрак | B3: Выход | C3: Завтрак | D3: Выход | E3: Завтрак | F3: Выход | G3: Завтрак | H3: Выход | I3: Завтрак | J3: Выход
A4: с 9-15 до 10-00 | B4: блюда | C4: с 9-15 до 10-00 | D4: блюда | E4: с 9-15 до 10-00 | F4: блюда | G4: с 9-15 до 10-00 | H4: блюда | I4: с 9-15 до 10-00 | J4: блюда
A5: Каша молочная | B5: 200 | C5: Суп молочный | D5: 250 | E5: Овощи натуральные | F5: 60 | G5: Пудинг из творога, | H5: 100 | I5: Биточек белорусский | J5: 90/30
A6: Омлет натуральный | B6: 65 | C6: Чай с лимоном | D6: 200 | E6: Курица(филе) в сметанном соусе | F6: 50/50 | G6: сгущеное молоко/джем | H6: 50 | I6: Рис рассыпчатый | J6: 150
A7: кофейныйн напиток | B7: 200 | C7: Бутер чиз | D7: 50/15 | E7: Каша гречневая | F7: 150 | G7: Каша молочная | H7: 150 | I7: Чай с медом | J7: 200
A8: Хлеб пшеничный | B8: 40 | C8: яблоко печеное | D8: 100 | E8: Чай с шиповником | F8: 200 | G8: Чай с сахаром | H8: 200 | I8: Хлеб пшеничный | J8: 40
E9: Хлеб пшеничный | F9: 40 | G9: Батон | H9: 40 | I9: яблоко печеное | J9: 100
A10: Обед | C10: Обед | E10: Обед | G10: Обед | I10: Обед
A11: с 13-00 до 14-00 | C11: с 13-00 до 14-00 | E11: с 13-00 до 14-00 | G11: с 13-00 до 14-00 | I11: с 13-00 до 14-00
A12: с-т свекла отварная | C12: Овощи натуральные | D12: 60 | E12: Овощи натуральные | F12: 60 | G12: Овощи натуральные | H12: 60 | I12: Салат из морск. капусты | J12: 80
A13: Щи со свежей капустой | B13: 250 | C13: Суп картофельны с бобовыми | D13: 250 | E13: Суп картофельный с макарон.изд | F13: 250 | G13: Борщ | H13: 250 | I13: Суп лапша по домашнему | J13: 250
A14: Мясо тушеное с овощами | B14: 100 | C14: Котлета куриная с соусом | D14: 90/30 | E14: Ежики с соусом | F14: 100 | G14: Птица запеченная с соусом | H14: 90/30 | I14: Рыба тушеннаяс ов | J14: 50/50
A15: спагетти | B15: 150 | C15: Картоф. пюре | D15: 150 | E15: рагу овощное | F15: 150 | G15: Макароны отварные | H15: 150 | I15: Картоф. пюре | J15: 150
A16: Компот из кураги | B16: 200 | C16: Компот из сухфруктов | D16: 200. | E16: Компот из св. плодов | F16: 200 | G16: Кисель из ягод | H16: 200 | I16: Сок фруктовый | J16: 200
A17: Хлеб ржаной | B17: 40 | C17: Хлеб ржаной | D17: 40 | E17: Хлеб ржаной | F17: 40 | G17: Хлеб ржаной | H17: 40 | I17: Хлеб ржаной | J17: 40
A18: Хлеб пшеничный | B18: 40 | C18: Хлеб пшеничный | D18: 40 | E18: Хлеб пшеничный | F18: 40 | G18: Хлеб пшеничный | H18: 40 | I18: Хлеб пшеничный | J18: 40
A20: Полдник | C20: Полдник | E20: Полдник | G20: Печенье | H20: 50 | I20: Полдник
A21: Печенье | B21: 50 | C21: Кекс творожный | D21: 50 | E21: Булочка | F21: 50 | G21: Кисломолочный напиток | H21: 200 | I21: Булочка | J21: 50
A22: Сок фруктовый | B22: 200 | C22: Кисломолочный напиток | D22: 200 | E22: Кисломолочный напиток | F22: 200 | G22: Сок фруктовый | H22: 200 | I22: Кисломолочный напиток | J22: 200
A23: 6 день | C23: 7 день | E23: 8 день | G23: 9 день | I23: 10 день
A24: Завтрак | B24: Выход | C24: Завтрак | D24: Выход | E24: Завтрак | F24: Выход | G24: Завтрак | H24: Выход | I24: Завтрак | J24: Выход
A25: с 9-15 до 10-00 | B25: блюда | C25: с 9-15 до 10-00 | D25: блюда | E25: с 9-15 до 10-00 | F25: блюда | G25: с 9-15 до 10-00 | H25: блюда | I25: с 9-15 до 10-00 | J25: блюда
A26: Суп молочный | B26: 150 | C26: Курица тушеная в соусе | D26: 50/50 | E26: Пудинг из творога, | F26: 100 | G26: Макароны отварные | H26: 150 | I26: Овощи натуральные | J26: 60
A27: Фриттата с ветчиной и сыром | B27: 120 | C27: Рис отварной | D27: 150 | E27: соус молочный | F27: 50 | G27: Ежики с соусом | H27: 100 | I27: Птица запеченная с соусом | J27: 100
A28: Чай с сахаром | B28: 200 | C28: Чай с шиповником | D28: 200 | E28: Каша молочная | F28: 200 | G28: Чай с сахаром | H28: 200 | I28: Каша гречневая рассыпчатая | J28: 150
A29: Хлеб пшеничный | B29: 40 | C29: Батер бат | D29: 50/15 | E29: Чай с лимоном | F29: 200 | G29: Хлеб пшеничный | H29: 40 | I29: Чай с медом | J29: 200
E30: Батон | F30: 40 | G30: яблоко печеное | I30: Хлеб пшеничный | J30: 40
A31: Обед | C31: Обед | E31: Обед | G31: Обед | I31: Обед
A32: с 13-00 до 14-00 | C32: с 13-00 до 14-00 | E32: с 13-00 до 14-00 | G32: с 13-00 до 14-00 | I32: с 13-00 до 14-00
A33: Овощи натуральные | B33: 80 | C33: Овощи натуральные | D33: 60 | E33: Овощи натуральные | F33: 60 | G33: Салат из морск. капусты | H33: 80 | I33: Овощи натуральные | J33: 60
A34: Свекольник | B34: 250 | C34: Суп гороховый с курицей | D34: 250 | E34: Суп лапша по домашнему | F34: 250 | G34: Щи вегетарианские со сметан | H34: 250 | I34: Суп кучерявый | J34: 250
A35: Гуляш из говядины | B35: 100 | C35: Фишбол | D35: 90/30 | E35: Котлета по-хлыновски | F35: 200 | G35: Оладьи из печени с соусом | H35: 90/30 | I35: Плов с мясом | J35: 200
A36: Каша гречневая | B36: 150 | C36: Макароны отварные | D36: 150 | E36: рагу овощное | F36: 150 | G36: Картоф. пюре | H36: 150 | I36: Компот из сухфруктов | J36: 200
A37: Компот из сухфруктов | B37: 200 | C37: Компот из кураги | D37: 200 | E37: Компот из сухфруктов | F37: 200 | G37: Компот из кураги | H37: 200 | I37: Хлеб ржаной | J37: 40
A38: Хлеб ржаной | B38: 40 | C38: Хлеб ржаной | D38: 40 | E38: Хлеб ржаной | F38: 40 | G38: Хлеб ржаной | H38: 40 | I38: Хлеб пшеничный | J38: 40
A39: Хлеб пшеничный | B39: 40 | C39: Хлеб пшеничный | D39: 40 | E39: Хлеб пшеничный | F39: 40 | G39: Хлеб пшеничный | H39: 40
C40: Полдник | E40: Полдник | G40: Полдник
A41: Кекс творожный | B41: 50 | C41: Печенье | D41: 50 | E41: Булочка | F41: 50 | G41: Булочка | H41: 50 | I41: творожник | J41: 50
A42: Сок фруктовый | B42: 200 | C42: Кисломолочный напиток | D42: 200 | E42: Кисломолочный напиток | F42: 200 | G42: Кисломолочный напиток | H42: 200 | I42: Сок фруктовый | J42: 200

Sheet разбивка
A1: Примерное меню и пищевая ценность приготовленных блюд
A2: Муниципального общеобразовательного учреждения 2024/2025учебный год (7-11 лет)
A3: № тех. карты | B3: Наименование блюда | C3: масса порции | D3: Наименование продуктов | E3: количество в г. | G3: пищевые ценности | J3: энерг. ценность (ккал)
E4: брутто | F4: нетто | G4: Б | H4: Ж | I4: У
A5: Первая неделя 1день (понедельник)
A6: ЗАВТРАК
A7: 262 | B7: Каша молочная | C7: 200 | D7: молоко | E7: 106 | F7: 106 | G7: 6.2 | H7: 7.47 | I7: 30.9 | J7: 215.47
D8: крупа( манная,геркулес/пшено, пшеничная) | E8: 31/40 | F8: 31/40
D9: вода | E9: 70 | F9: 70
D10: масло сливочное | E10: 6.6 | F10: 6.6
D11: сахар | E11: 5 | F11: 5
A12: 301 | B12: Омлет | C12: 100 | D12: яйцо | E12: 70 | F12: 62 | G12: 8.6 | H12: 13.4 | I12: 2.3 | J12: 163
D13: молоко | E13: 38 | F13: 38
D14: масло сливочное | E14: 3.8 | F14: 3.8
A15: 501 | B15: Кофейный напиток | C15: 200 | D15: Кофейный напиток | E15: 5 | F15: 5 | G15: 3.2 | H15: 2.7 | I15: 15.9 | J15: 79
D17: вода | E17: 150 | F17: 150
D18: лимон | E18: 8 | F18: 7
D19: сахар | E19: 15 | F19: 15
A20: 108 | B20: Хлеб пшеничный/ | C20: 40 | D20: хлеб пшеничный | E20: 40 | F20: 40 | G20: 3.04 | H20: 0.32 | I20: 19.6 | J20: 94
A21: Всего на завтрак : | G21: =SUM(G7:G20) -> 21.04 | H21: =SUM(H7:H20) -> 23.89 | I21: =SUM(I7:I20) -> 68.7 | J21: =SUM(J7:J20) -> 551.47
A22: ОБЕД
A23: 55 | B23: Салат отварной свеклы | C23: 80 | D23: свекла | E23: 96.8 | F23: 76 | G23: 1 | H23: 4.4 | I23: 6.72 | J23: 81.2
D24: масло растительное | E24: 4 | F24: 4
A25: 142 | B25: Щи со свежей капустой и | C25: 250 | D25: картофель | E25: 40 | F25: 30 | G25: 1 | H25: 4.98 | I25: 7.78 | J25: 103
B26: картофелем | D26: капуста белокачанная | E26: 62.5 | F26: 50
D27: морковь | E27: 15.75 | F27: 12.5
D28: лук | E28: 12 | F28: 10
D29: томат пюре | E29: 2.5 | F29: 2.5
D30: растительное масло | E30: 5 | F30: 5
D31: Бульон или вода | E31: 200 | F31: 200
D32: куры I категории | E32: 20 | F32: 12.5 | G32: 2.9 | H32: 2 | I32: 0.07 | J32: 30.35
A33: 363 | B33: Мясо тушеное с овощами | C33: 50/50 | D33: говядина/свинина | E33: 113 | F33: 83 | G33: 14.7 | H33: 14.8 | I33: 2.3 | J33: 237
D34: растительное масло | E34: 5 | F34: 5
D35: морковь | E35: 5 | F35: 4
D36: лук репчатый | E36: 5 | F36: 4
D37: томатное пюре | E37: 7 | F37: 7
D38: мука пшеничная | E38: 2 | F38: 2
A39: 291 | B39: Макароные изделия отварные | C39: 150 | D39: спагети | E39: 51 | F39: 51 | G39: 5.66 | H39: 6.28 | I39: 29.04 | J39: 195.32
D40: масло сливочное | E40: 7 | F40: 7
A41: 512 | B41: Компот из кураги | C41: 200 | D41: курога | E41: 20 | F41: 37 | G41: 0.3 | H41: 0 | I41: 20.1 | J41: 81
D42: сахар | E42: 15 | F42: 15
D43: вода | E43: 190 | F43: 190
A44: 108 | B44: Хлеб пшеничный/ | C44: 40 | D44: хлеб пшеничный | E44: 40 | F44: 40 | G44: 3.04 | H44: 0.32 | I44: 19.6 | J44: 94
A45: 109 | B45: ржаной | C45: 40 | D45: хлеб ржаной | E45: 40 | F45: 40 | G45: 2.64 | H45: 0.48 | I45: 13.36 | J45: 69.6
A47: Всего на обед: | G47: =SUM(G23:G45) -> 31.24 | H47: =SUM(H23:H45) -> 33.26 | I47: =SUM(I23:I45) -> 98.97 | J47: =SUM(J23:J45) -> 891.47
A48: Всего в день: | G48: =SUM(G21+G47) -> 52.28 | H48: =SUM(H21+H47) -> 57.15 | I48: =SUM(I21+I47) -> 167.67 | J48: =SUM(J21+J47) -> 1442.94
A49: Первая неделя 2 ДЕНЬ (вторник)
A50: ЗАВТРАК
A51: 164/165 | B51: Суп молочный | C51: 250 | D51: молоко | E51: 175 | F51: 175 | G51: 6.03 | H51: 6.45 | I51: 20.65 | J51: 185
D52: крупа рисовая, | E52: 15 | F52: 15
D53: или крупа гречневая | E53: 20 | F53: 20
D54: или макаронные изделия | E54: 20 | F54: 20
D55: сливочное масло | E55: 2.5 | F55: 2.5
D56: вода | E56: 75 | F56: 75
D57: сахар | E57: 2 | F57: 2
A58: 493 | B58: Чай с шиповником | C58: 200 | D58: чай- заварка№ 492 | E58: 50 | F58: 50 | G58: 0.1 | H58: 0 | I58: 16 | J58: 63
D59: шиповник сух | E59: 2 | F59: 2
D60: сахар | E60: 15 | F60: 15
D61: вода | E61: 150 | F61: 150
A62: кон от | B62: бутер чиз | C62: 65 | D62: Булочка сдобная | E62: 50 | F62: 50 | G62: 7.75 | H62: 5.45 | I62: 25.7 | J62: 218
D63: сыр | E63: 15.2 | F63: 15
A64: 482 | B64: яблоко печеное | C64: 100 | D64: яблоко | E64: 104 | F64: 92 | G64: 0.4 | H64: 0.4 | I64: 19.73 | J64: 121
D65: сахар | E65: 13 | F65: 13
A66: Всего на завтрак : | G66: =SUM(G51:G65) -> 14.28 | H66: =SUM(H51:H65) -> 12.3 | I66: =SUM(I51:I65) -> 82.08 | J66: =SUM(J51:J65) -> 587
A67: ОБЕД
A68: 106 | B68: Овощи натуральные | C68: 60 | D68: помидор/огурец | E68: 64,2/63 | F68: 60 | G68: 0.6 | H68: 0.12 | I68: 2.28 | J68: 14.4
A69: 144 | B69: Суп картофельный | C69: 250 | D69: картофель | E69: 83.2 | F69: 62.5 | G69: 2.3 | H69: 4.25 | I69: 15.1 | J69: 118
A70: 404 | B70: с бобовыми | D70: морковь | E70: 12.5 | F70: 10
D71: горох | E71: 20.3 | F71: 20
D72: или конс.горошек | E72: 38.5 | F72: 25
D73: лук | E73: 12 | F73: 10
D74: растительное масло | E74: 5 | F74: 5
D75: вода или бульон | E75: 163
D76: куры I категории | E76: 20 | F76: 12.5 | G76: 2.9 | H76: 2 | I76: 0.07 | J76: 30.35
A77: 412 | B77: Котлета куриая с соусом | C77: 90/30 | D77: филе куринное | E77: 67 | F77: 67 | G77: 13.5 | H77: 9.64 | I77: 8.36 | J77: 169.7
D78: хлеб пшеничный | E78: 16.7 | F78: 16.7
D79: молоко или вода | E79: 23 | F79: 23
A80: 454 | B80: Соус томатный с овощами | C80: 30 | D80: соус | E80: 30 | F80: 30 | G80: 0.35 | H80: 1.23 | I80: 2.23 | J80: 21.48
A81: 429 | B81: Картофельное пюре | C81: 150 | D81: картофель | E81: 169.5 | F81: 126 | G81: 3.15 | H81: 6.6 | I81: 16.35 | J81: 158
D82: сливочное масло | E82: 7 | F82: 7
D83: молоко | E83: 24 | F83: 23
A84: 508 | B84: Компот из смеси | C84: 200 | D84: С\фрукты | E84: 25 | F84: 30.5 | G84: 0.5 | H84: 0 | I84: 27 | J84: 110
B85: сухофруктов | D85: сахар | E85: 15 | F85: 15
D86: вода | E86: 190 | F86: 190
A87: 108 | B87: Хлеб пшеничный/ | C87: 40 | D87: хлеб пшеничный | E87: 40 | F87: 40 | G87: 3.04 | H87: 0.32 | I87: 19.6 | J87: 118
A88: 109 | B88: ржаной | C88: 40 | D88: хлеб ржаной | E88: 40 | F88: 40 | G88: 2.64 | H88: 0.48 | I88: 13.36 | J88: 87
A89: Всего на обед: | G89: =SUM(G68:G88) -> 28.98 | H89: =SUM(H68:H88) -> 24.64 | I89: =SUM(I68:I88) -> 104.35 | J89: =SUM(J68:J88) -> 826.93
A90: Всего в день: | G90: =SUM(G66+G89) -> 43.26 | H90: =SUM(H66+H89) -> 36.94 | I90: =SUM(I66+I89) -> 186.43 | J90: =SUM(J66+J89) -> 1413.93
A91: Первая неделя 3 ДЕНЬ (среда)
A92: ЗАВТРАК
A93: 106 | B93: Овощи натуральные | C93: 60 | D93: помидор/огурец | E93: 64,2/63 | F93: 60 | G93: 0.6 | H93: 0.12 | I93: 2.28 | J93: 14.4
A94: 54-25 | B94: Курица(филе) тушеное в сметане | C94: 50/50 | D94: куриная грудка | E94: 67 | F94: 59 | G94: 14.1 | H94: 5.7 | I94: 4.4 | J94: 139.4
D95: лук репчатый | E95: 12.9 | F95: 10.3
D96: морковь | E96: 28.4 | F96: 22.7
D97: мука пшеничная | E97: 2.7 | F97: 2.7
D98: сметана | E98: 9.1 | F98: 9.1
D99: масло растительное | E99: 2,7 | F99: 2.7
D100: вода | E100: 40 | F100: 40
A101: 237 | B101: Каша гречневая рассыпчатая | C101: 150 | D101: крупа гречневая | E101: 69 | F101: 69 | G101: 8.55 | H101: 7.8 | I101: 37.07 | J101: 253
D102: сливочное масло | E102: 7 | F102: 7
D103: вода | E103: 102 | F103: 102
A104: 493 | B104: Кисломолочный напиток | C104: 200 | D104: Кисломолочный напиток | E104: 206 | F104: 200 | G104: 10 | H104: 6.4 | I104: 17 | J104: 174
A105: 108 | B105: Хлеб пшеничный/ | C105: 50 | D105: хлеб пшеничный | E105: 50 | F105: 50 | G105: 3.8 | H105: 0.4 | I105: 24.6 | J105: 117.5
A106: Всего завтрак | G106: =SUM(G93:G105) -> 37.05 | H106: =SUM(H93:H105) -> 20.42 | I106: =SUM(I93:I105) -> 85.35 | J106: =SUM(J93:J105) -> 698.3
A107: ОБЕД
A108: 106 | B108: Овощи натуральные | C108: 60 | D108: помидор/огурец | E108: 64,2/63 | F108: 60 | G108: 0.6 | H108: 0.12 | I108: 2.28 | J108: 14.4
A109: 158 | B109: Суп картофельный с макароными | C109: 250 | D109: макарон. Изделия | E109: 12.5 | F109: 12.5 | G109: 2.58 | H109: 2.78 | I109: 18.55 | J109: 109.5
B110: изделиями | D110: картофель | E110: 66.8 | F110: 50
D111: морковь | E111: 12.5 | F111: 10
D112: лук | E112: 12 | F112: 10
D113: растительное масло | E113: 2.5 | F113: 2.5
D114: куры I категории | E114: 20 | F114: 12.5 | G114: 2.9 | H114: 2 | I114: 0.07 | J114: 30.35
A115: 396 | B115: Рага овощное | C115: 150 | D115: картофель | E115: 105.3 | F115: 78 | G115: 17 | H115: 17.6 | I115: 14.3 | J115: 284
D116: капуста | E116: 50 | F116: 57
D117: масло растительное | E117: 6 | F117: 6
D118: морковь | E118: 45 | F118: 36
D119: лук | E119: 14 | F119: 12
A120: 390 | B120: "Ёжики" с соусом | C120: 70/30 | D120: мясо | E120: 61 | F120: 44 | G120: 9.5 | H120: 15.3 | I120: 11.4 | J120: 221
D121: вода | E121: 7 | F121: 7
D122: крупа рисовая | E122: 6 | F122: 6
D123: масса готового риса | F123: 17.5
D124: лук репчатый | E124: 24.5 | F124: 21
D125: масло сливочные | E125: 4 | F125: 4
D126: масса пассиров. лука | F126: 10.5
D127: мука | E127: 5 | F127: 5
D128: масса полуфабрикат | F128: 83
D129: соус молочный | F129: 30
A130: 507 | B130: Компот свежих плодов | C130: 200 | D130: яблоки | E130: 45.4 | F130: 40 | G130: 0.5 | H130: 0.2 | I130: 23.1 | J130: 96
D131: сахар | E131: 15 | F131: 15
D132: вода | E132: 162 | F132: 162
D133: или ягода свежая | E133: 42 | F133: 40
A134: 108 | B134: Хлеб пшеничный/ | C134: 40 | D134: хлеб пшеничный | E134: 40 | F134: 40 | G134: 3.04 | H134: 0.32 | I134: 19.6 | J134: 94
A135: 109 | B135: ржаной | C135: 40 | D135: хлеб ржаной | E135: 40 | F135: 40 | G135: 2.64 | H135: 0.48 | I135: 13.36 | J135: 69.6
A136: Всего на обед: | G136: =SUM(G108:G135) -> 38.76 | H136: =SUM(H108:H135) -> 38.8 | I136: =SUM(I108:I135) -> 102.66 | J136: =SUM(J108:J135) -> 918.85
D137: Всего день | G137: =G106+G136 -> 75.81 | H137: =H106+H136 -> 59.22 | I137: =I106+I136 -> 188.01 | J137: =J106+J136 -> 1617.15
A138: Первая неделя 4 ДЕНЬ(ЧЕТВЕРГ)
A140: ЗАВТРАК
A141: 319 | B141: Пудинг из творога запеченый | C141: 100 | D141: творог | E141: 80.1 | F141: 79 | G141: 13.8 | H141: 13.13 | I141: 21.1 | J141: 208
B142: джем или соус молочный | C142: 50 | D142: крупа манная | E142: 8 | F142: 8
D143: яйцо | E143: 1/6 шт | F143: 7
D144: сахар | E144: 8 | F144: 8
D145: растительное масло | E145: 3 | F145: 3
D146: сухари | E146: 2.5 | F146: 2.5
D147: сметана | E147: 2.5 | F147: 2.5
D148: джем | E148: 50 | F148: 50 | G148: 0.2 | H148: 0 | I148: 32.6 | J148: 95
A149: 265 | B149: Каша молочная | C149: 150 | D149: молоко | E149: 75 | F149: 75 | G149: 4.65 | H149: 5.6 | I149: 27.75 | J149: 180
D150: крупа( манная,геркулес/пшено, пшеничная,кукурузная) | E150: 23/30 | F150: 23/30
D151: вода | E151: 51 | F151: 51
D152: масло сливочное | E152: 3.75 | F152: 3.75
D153: сахар | E153: 3.75 | F153: 3.75
A154: 493 | B154: Чай с сахаром | C154: 200 | D154: чай- заварка№ 492 | E154: 50 | F154: 50 | G154: 0.1 | H154: 0 | I154: 15 | J154: 60
D155: сахар | E155: 15 | F155: 15
D156: вода | E156: 150 | F156: 150
A157: 111 | B157: Батон | C157: 50 | D157: батон нарезной | E157: 50 | F157: 50 | G157: 3.75 | H157: 1.45 | I157: 25.7 | J157: 101
A158: Всего на завтрак : | G158: =SUM(G141:G157) -> 22.5 | H158: =SUM(H141:H157) -> 20.18 | I158: =SUM(I141:I157) -> 122.15 | J158: =SUM(J141:J157) -> 644
A159: ОБЕД
A160: 106 | B160: Овощи натуральные | C160: 60 | D160: помидор/огурец | E160: 64,2/63 | F160: 60 | G160: 0.6 | H160: 0.12 | I160: 2.28 | J160: 14.4
D161: масло растительное | E161: 10 | F161: 10
A162: 128 | B162: Борщ с капустой и картофелем | C162: 250 | D162: свекла | E162: 50 | F162: 40 | G162: 1.83 | H162: 5 | I162: 10.65 | J162: 95
D163: капуста | E163: 25 | F163: 20
D164: картофель | E164: 26.8 | F164: 20
D165: морковь | E165: 15.8 | F165: 12.5
D166: лук | E166: 12 | F166: 10
D167: томат пюре | E167: 7.5 | F167: 7.5
D168: сахар | E168: 1.5 | F168: 1.5
D169: растительное масло | E169: 5 | F169: 5
D170: сметана | E170: 12.5 | F170: 12.5
D171: бульон или вода | E171: 200 | F171: 200
D172: куры I категории | E172: 20 | F172: 12.5 | G172: 2.9 | H172: 2 | I172: 0.07 | J172: 30.35
A173: 293 | B173: Птица запеченная | C173: 100 | D173: Курин.окорочка (голень, бедро) | E173: 145 | F173: 142 | G173: 22.2 | H173: 25.6 | I173: 0.08 | J173: 309
D174: Сметана | E174: 2 | F174: 2
D175: Масло растительное | E175: 6 | F175: 6
D176: Соль | E176: 1 | F176: 1
A177: 291 | B177: Макароные изделия отварные | C177: 150 | D177: макаронные изделия | E177: 51 | F177: 51 | G177: 5.66 | H177: 0.68 | I177: 29.04 | J177: 145
D178: масло сливочное | E178: 7 | F178: 7
A179: 505 | B179: Кисель из свежих ягод | C179: 200 | D179: ягода свежая | E179: 25 | F179: 24 | G179: 0.2 | H179: 0.1 | I179: 21.5 | J179: 87
D180: вода | E180: 180 | F180: 180
D181: сахар | E181: 15 | F181: 15
D182: крахмал | E182: 6 | F182: 6
A183: 108 | B183: Хлеб пшеничный/ | C183: 40 | D183: хлеб пшеничный | E183: 40 | F183: 40 | G183: 3.04 | H183: 0.32 | I183: 19.6 | J183: 94
A184: 109 | B184: ржаной | C184: 40 | D184: хлеб ржаной | E184: 40 | F184: 40 | G184: 2.64 | H184: 0.48 | I184: 13.36 | J184: 69.6
A185: Всего на обед: | G185: =SUM(G160:G184) -> 39.07 | H185: =SUM(H160:H184) -> 34.3 | I185: =SUM(I160:I184) -> 96.58 | J185: =SUM(J160:J184) -> 844.35
A186: Всего в день: | G186: =SUM(G158+G185) -> 61.57 | H186: =SUM(H158+H185) -> 54.48 | I186: =SUM(I158+I185) -> 218.73 | J186: =SUM(J158+J185) -> 1488.35
A187: Первая неделя 5 ДЕНЬ (ПЯТНИЦА)
A188: ЗАВТРАК
A189: 467 | B189: Биточки по беларусски | C189: 90/30 | D189: говядина | E189: 126 | F189: 92 | G189: 13.8 | H189: 14.8 | I189: 1.9 | J189: 247
B190: с соусом | D190: лук репчатый | E190: 14.4 | F190: 12.6
D191: молоко | E191: 16 | F191: 16
D192: яйцо | E192: 1/16 | F192: 9
D193: масло растительное | E193: 3 | F193: 3
A194: 454 | B194: Соус томатный с овощами | C194: 30 | D194: Соус | E194: 30 | F194: 30 | G194: 0.35 | H194: 1.24 | I194: 2.23 | J194: 21.48
A195: 414 | B195: Рис отварной | C195: 150 | D195: Крупа рисовая | E195: 54 | F195: 54 | G195: 3.6 | H195: 6 | I195: 33.8 | J195: 204.58
D196: Масло сливочное | E196: 5.5 | F196: 5.5
A197: 493 | B197: Чай с медом | C197: 200 | D197: чай- заварка№ 492 | E197: 50 | F197: 50 | G197: 0.1 | H197: 0 | I197: 16 | J197: 63
D198: мед | E198: 15 | F198: 15
D199: вода | E199: 150 | F199: 150
A200: 482 | B200: яблоко печеное | C200: 100 | D200: яблоко | E200: 104 | F200: 92 | G200: 0.4 | H200: 0.4 | I200: 19.73 | J200: 84
D201: сахар | E201: 13 | F201: 13
A202: Всего на завтрак : | G202: =SUM(G189:G201) -> 18.25 | H202: =SUM(H189:H201) -> 22.44 | I202: =SUM(I189:I201) -> 73.66 | J202: =SUM(J189:J201) -> 620.06
A203: ОБЕД
... 263 more rows

Sheet Лист2
A1: Кон.отр. | B1: Молоко заварное | C1: 200 | D1: чай- заварка№ 492 | E1: 50 | F1: 50 | G1: 4.55 | H1: 2.8 | I1: 17.77 | J1: 86.75
D2: молоко | E2: 150 | F2: 150
D3: сахар | E3: 15 | F3: 15
A6: 20 | B6: Салат из помидор и кукурузы | C6: 80 | D6: Помидоры | E6: 59 | F6: 50 | G6: 0.9 | H6: 8.44 | I6: 6.82 | J6: 106.4
D7: Лук репчатый | E7: 9.5 | F7: 8
D8: Кукуруза консервировная | E8: 33.3 | F8: 20
D9: Масло растительное | E9: 8 | F9: 8

Sheet Лист3
